[Event "Late-Titled-Tuesday-Blitz-January-16-2024"]
[Site "Chess.com"]
[Date "2024.01.16"]
[Round "2"]
[White "Mikhail_Golubev"]
[Black "GrotBchess"]
[Result "1-0"]
[WhiteElo "2537"]
[BlackElo "2307"]
[TimeControl "180+1"]
[EndTime "14:18:35 PST"]
[Termination "Mikhail_Golubev won by checkmate"]

1. e4 {[%clk 0:03:00.9]} 1... c5 {[%clk 0:02:59.3]} 2. Nf3 {[%clk 0:03:00.7]}
2... e6 {[%clk 0:02:59.6]} 3. d4 {[%clk 0:03:00.3]} 3... cxd4 {[%clk 0:03:00.2]}
4. Nxd4 {[%clk 0:03:00.8]} 4... Nc6 {[%clk 0:03:00.8]} 5. Nc3 {[%clk 0:03:00.1]}
5... Qc7 {[%clk 0:03:00.2]} 6. Be3 {[%clk 0:02:59.5]} 6... a6 {[%clk 0:03:00.7]}
7. Bd3 {[%clk 0:02:59.3]} 7... Nf6 {[%clk 0:02:56.6]} 8. O-O {[%clk 0:02:58.9]}
8... Be7 {[%clk 0:02:56.7]} 9. f4 {[%clk 0:02:56.4]} 9... d6 {[%clk 0:02:56.7]}
10. Qf3 {[%clk 0:02:51.1]} 10... Nxd4 {[%clk 0:02:48.5]} 11. Bxd4 {[%clk
0:02:49.9]} 11... b5 {[%clk 0:02:48.6]} 12. Qg3 {[%clk 0:02:25.7]} 12... Rg8
{[%clk 0:02:38.6]} 13. e5 {[%clk 0:02:18.1]} 13... Nd7 {[%clk 0:02:21.3]} 14.
Bxh7 {[%clk 0:02:07.5]} 14... Rf8 {[%clk 0:02:20.6]} 15. exd6 {[%clk 0:02:00.8]}
15... Bxd6 {[%clk 0:02:13.8]} 16. Bxg7 {[%clk 0:01:59.9]} 16... Bb7 {[%clk
0:02:07.4]} 17. Bxf8 {[%clk 0:01:57.6]} 17... Nxf8 {[%clk 0:02:07.6]} 18. Be4
{[%clk 0:01:56.8]} 18... O-O-O {[%clk 0:02:00.7]} 19. Qf3 {[%clk 0:01:53.3]}
19... Bc5+ {[%clk 0:01:46.2]} 20. Kh1 {[%clk 0:01:52]} 20... Bxe4 {[%clk
0:01:45]} 21. Nxe4 {[%clk 0:01:52.5]} 21... Bb6 {[%clk 0:01:43.2]} 22. Rad1
{[%clk 0:01:51.7]} 22... Rxd1 {[%clk 0:01:41.2]} 23. Rxd1 {[%clk 0:01:51]} 23...
Ng6 {[%clk 0:01:41.5]} 24. Nd6+ {[%clk 0:01:49.5]} 24... Kb8 {[%clk 0:01:39.9]}
25. c3 {[%clk 0:01:29.5]} 25... Bc5 {[%clk 0:01:35.1]} 26. Ne4 {[%clk
0:01:27.4]} 26... Bb6 {[%clk 0:01:34.6]} 27. Nf6 {[%clk 0:01:17.1]} 27... Nf8
{[%clk 0:01:03.5]} 28. Qe4 {[%clk 0:01:01.9]} 28... Ka7 {[%clk 0:00:36.4]} 29.
a4 {[%clk 0:01:01]} 29... Qe7 {[%clk 0:00:28.9]} 30. Ng8 {[%clk 0:00:09.5]}
30... Qc7 {[%clk 0:00:17.8]} 31. axb5 {[%clk 0:00:08.5]} 31... a5 {[%clk
0:00:15.3]} 32. b4 {[%clk 0:00:07.8]} 32... f5 {[%clk 0:00:14.8]} 33. Qe5 {[%clk
0:00:06.6]} 33... Qf7 {[%clk 0:00:09.1]} 34. bxa5 {[%clk 0:00:06.2]} 34... Bxa5
{[%clk 0:00:08.2]} 35. Ra1 {[%clk 0:00:05.4]} 35... Kb6 {[%clk 0:00:05.8]} 36.
Qd6+ {[%clk 0:00:05.3]} 36... Kb7 {[%clk 0:00:05.1]} 37. Qa6+ {[%clk 0:00:04.5]}
37... Kb8 {[%clk 0:00:04.4]} 38. Rxa5 {[%clk 0:00:03.5]} 38... Qd7 {[%clk
0:00:04.9]} 39. Qb6+ {[%clk 0:00:03.4]} 39... Qb7 {[%clk 0:00:02.7]} 40. Qd8+
{[%clk 0:00:03.4]} 40... Qc8 {[%clk 0:00:03]} 41. Ra8+ {[%clk 0:00:04]} 41...
Kxa8 {[%clk 0:00:03]} 42. Qxc8+ {[%clk 0:00:04.5]} 42... Ka7 {[%clk 0:00:03.9]}
43. Qa6+ {[%clk 0:00:04.9]} 43... Kb8 {[%clk 0:00:04.1]} 44. b6 {[%clk
0:00:05.6]} 44... Nd7 {[%clk 0:00:04.5]} 45. Qa7+ {[%clk 0:00:05.8]} 45... Kc8
{[%clk 0:00:05.1]} 46. b7+ {[%clk 0:00:06]} 46... Kd8 {[%clk 0:00:04.2]} 47.
b8=Q+ {[%clk 0:00:06.9]} 47... Nxb8 {[%clk 0:00:04]} 48. Qxb8+ {[%clk
0:00:07.2]} 48... Kd7 {[%clk 0:00:04.8]} 49. Qe5 {[%clk 0:00:07.3]} 49... Kc6
{[%clk 0:00:05.3]} 50. Qxe6+ {[%clk 0:00:07]} 50... Kc5 {[%clk 0:00:06]} 51.
Qxf5+ {[%clk 0:00:07.6]} 51... Kc4 {[%clk 0:00:06.3]} 52. h4 {[%clk 0:00:08]}
52... Kxc3 {[%clk 0:00:07.2]} 53. h5 {[%clk 0:00:08.6]} 53... Kd2 {[%clk
0:00:07.8]} 54. h6 {[%clk 0:00:09.4]} 54... Ke2 {[%clk 0:00:08.7]} 55. h7 {[%clk
0:00:09.9]} 55... Kf2 {[%clk 0:00:09.6]} 56. h8=Q {[%clk 0:00:09.7]} 56... Kg3
{[%clk 0:00:10.2]} 57. Qc3+ {[%clk 0:00:09.2]} 57... Kf2 {[%clk 0:00:10.6]} 58.
Qfc2+ {[%clk 0:00:08.5]} 58... Kf1 {[%clk 0:00:10.8]} 59. Qa1# {[%clk 0:00:08]}
1-0

[Event "Late-Titled-Tuesday-Blitz-January-16-2024"]
[Site "Chess.com"]
[Date "2024.01.16"]
[Round "2"]
[White "GianmarcoVaR"]
[Black "Balla_Tamas"]
[Result "1-0"]
[WhiteElo "2735"]
[BlackElo "2458"]
[TimeControl "180+1"]
[EndTime "14:18:42 PST"]
[Termination "GianmarcoVaR won by resignation"]

1. d4 {[%clk 0:03:00.5]} 1... d5 {[%clk 0:03:00]} 2. Nf3 {[%clk 0:02:59.8]} 2...
Nf6 {[%clk 0:03:00.3]} 3. Bf4 {[%clk 0:03:00.1]} 3... e6 {[%clk 0:03:00.7]} 4.
e3 {[%clk 0:03:00.5]} 4... Bd6 {[%clk 0:03:01.3]} 5. Nbd2 {[%clk 0:02:59.4]}
5... O-O {[%clk 0:02:59.4]} 6. Bg3 {[%clk 0:02:57.6]} 6... b6 {[%clk 0:02:57.1]}
7. Bd3 {[%clk 0:02:50.7]} 7... c5 {[%clk 0:02:56]} 8. O-O {[%clk 0:02:49.4]}
8... Ba6 {[%clk 0:02:54.2]} 9. c4 {[%clk 0:02:44.4]} 9... Bxg3 {[%clk
0:02:49.5]} 10. hxg3 {[%clk 0:02:44.3]} 10... cxd4 {[%clk 0:02:46.8]} 11. Nxd4
{[%clk 0:02:41.8]} 11... dxc4 {[%clk 0:02:46.9]} 12. Nxc4 {[%clk 0:02:40]} 12...
Nbd7 {[%clk 0:02:32.8]} 13. Rc1 {[%clk 0:02:10.8]} 13... Rc8 {[%clk 0:02:29.5]}
14. Qf3 {[%clk 0:02:00.7]} 14... Bxc4 {[%clk 0:02:20.3]} 15. Bxc4 {[%clk
0:02:00.9]} 15... Ne5 {[%clk 0:02:06.7]} 16. Qe2 {[%clk 0:01:56.9]} 16... Nxc4
{[%clk 0:02:06.7]} 17. Rxc4 {[%clk 0:01:57.2]} 17... Qd5 {[%clk 0:01:56.4]} 18.
Rfc1 {[%clk 0:01:55.7]} 18... Rxc4 {[%clk 0:01:56.2]} 19. Qxc4 {[%clk
0:01:56.6]} 19... Qh5 {[%clk 0:01:54.2]} 20. Qb5 {[%clk 0:01:46.4]} 20... e5
{[%clk 0:01:37]} 21. Nf3 {[%clk 0:01:40.8]} 21... Re8 {[%clk 0:01:29.8]} 22. Rc7
{[%clk 0:01:36.3]} 22... Qh6 {[%clk 0:01:12.7]} 23. Qc4 {[%clk 0:01:35.4]} 23...
Qh5 {[%clk 0:00:57.5]} 24. Rxa7 {[%clk 0:01:20.8]} 24... e4 {[%clk 0:00:54.3]}
25. Nh2 {[%clk 0:00:59]} 25... Rd8 {[%clk 0:00:37.6]} 26. g4 {[%clk 0:00:57.4]}
26... Nxg4 {[%clk 0:00:33.2]} 27. Nf1 {[%clk 0:00:49.9]} 27... h6 {[%clk
0:00:26.5]} 28. Qxe4 {[%clk 0:00:45.4]} 28... Nf6 {[%clk 0:00:12.6]} 29. Qf3
{[%clk 0:00:34]} 29... Qb5 {[%clk 0:00:10.2]} 30. Ra8 {[%clk 0:00:33]} 30...
Rxa8 {[%clk 0:00:07.4]} 31. Qxa8+ {[%clk 0:00:33.9]} 31... Kh7 {[%clk
0:00:08.3]} 32. Qa3 {[%clk 0:00:33.2]} 32... Qd5 {[%clk 0:00:05.4]} 33. Qb4
{[%clk 0:00:25.2]} 33... Qc6 {[%clk 0:00:04.6]} 34. Qd2 {[%clk 0:00:17.9]} 34...
g6 {[%clk 0:00:05]} 35. Ng3 {[%clk 0:00:15.6]} 35... Ne4 {[%clk 0:00:05.2]} 36.
Nxe4 {[%clk 0:00:15.6]} 36... Qxe4 {[%clk 0:00:06.1]} 37. a3 {[%clk 0:00:14.1]}
37... Qb1+ {[%clk 0:00:06]} 38. Kh2 {[%clk 0:00:14.4]} 38... Qf5 {[%clk
0:00:06]} 39. f3 {[%clk 0:00:12.2]} 39... Qh5+ {[%clk 0:00:06.1]} 40. Kg1 {[%clk
0:00:11.9]} 40... Qe5 {[%clk 0:00:06.5]} 41. Qd4 {[%clk 0:00:12.2]} 41... Qg3
{[%clk 0:00:05.7]} 42. Kf1 {[%clk 0:00:09.7]} 42... Qc7 {[%clk 0:00:04.4]} 43.
a4 {[%clk 0:00:05.7]} 43... Qc1+ {[%clk 0:00:04.5]} 44. Kf2 {[%clk 0:00:06.3]}
44... Qc2+ {[%clk 0:00:05]} 45. Kg3 {[%clk 0:00:06.9]} 45... Qc7+ {[%clk
0:00:05.4]} 46. Kh3 {[%clk 0:00:05.4]} 46... Qc8+ {[%clk 0:00:05]} 47. Kh2
{[%clk 0:00:05.4]} 47... Qc7+ {[%clk 0:00:05.7]} 48. f4 {[%clk 0:00:05.8]} 48...
Qe7 {[%clk 0:00:03.4]} 49. Kg3 {[%clk 0:00:04.1]} 49... Qc7 {[%clk 0:00:03.1]}
50. b4 {[%clk 0:00:03.1]} 50... h5 {[%clk 0:00:03.7]} 51. b5 {[%clk 0:00:02.4]}
51... Qe7 {[%clk 0:00:02.4]} 52. Kf2 {[%clk 0:00:01.7]} 52... Qa3 {[%clk
0:00:02.7]} 53. Kg3 {[%clk 0:00:01.7]} 53... Qa2 {[%clk 0:00:03.1]} 54. Qe4
{[%clk 0:00:02.1]} 54... Qb1 {[%clk 0:00:03.2]} 55. Qxb1 {[%clk 0:00:02.2]} 1-0

[Event "Late-Titled-Tuesday-Blitz-January-16-2024"]
[Site "Chess.com"]
[Date "2024.01.16"]
[Round "2"]
[White "TimGrutter03"]
[Black "chenxiaoyuer"]
[Result "1-0"]
[WhiteElo "2545"]
[BlackElo "2767"]
[TimeControl "180+1"]
[EndTime "14:18:44 PST"]
[Termination "TimGrutter03 won by checkmate"]

1. Nf3 {[%clk 0:03:00.9]} 1... Nf6 {[%clk 0:02:59.5]} 2. c4 {[%clk 0:03:01]}
2... g6 {[%clk 0:03:00]} 3. b3 {[%clk 0:03:00.5]} 3... Bg7 {[%clk 0:03:00.9]} 4.
Bb2 {[%clk 0:03:00.6]} 4... O-O {[%clk 0:03:01.1]} 5. e3 {[%clk 0:03:00.4]} 5...
d6 {[%clk 0:03:00.6]} 6. Be2 {[%clk 0:03:00.4]} 6... e5 {[%clk 0:03:00.9]} 7. d3
{[%clk 0:03:00]} 7... Re8 {[%clk 0:02:47.4]} 8. O-O {[%clk 0:02:59.9]} 8... Nbd7
{[%clk 0:02:47.3]} 9. Nbd2 {[%clk 0:02:58.9]} 9... c6 {[%clk 0:02:44.8]} 10. a3
{[%clk 0:02:59.1]} 10... d5 {[%clk 0:02:43]} 11. e4 {[%clk 0:02:56.4]} 11...
dxe4 {[%clk 0:02:39.6]} 12. Nxe4 {[%clk 0:02:55]} 12... Nxe4 {[%clk 0:02:39.4]}
13. dxe4 {[%clk 0:02:55.9]} 13... Qe7 {[%clk 0:02:39.3]} 14. b4 {[%clk
0:02:50.5]} 14... Nf8 {[%clk 0:02:35.9]} 15. c5 {[%clk 0:02:50.6]} 15... Bg4
{[%clk 0:02:28.5]} 16. Bc4 {[%clk 0:02:50.4]} 16... Qf6 {[%clk 0:02:19.8]} 17.
Be2 {[%clk 0:02:41]} 17... Rad8 {[%clk 0:02:17.8]} 18. Qb3 {[%clk 0:02:40.8]}
18... h5 {[%clk 0:02:03.3]} 19. h3 {[%clk 0:02:40]} 19... Bxf3 {[%clk
0:02:00.6]} 20. Bxf3 {[%clk 0:02:40.9]} 20... Ne6 {[%clk 0:02:00.9]} 21. Rad1
{[%clk 0:02:33.2]} 21... Ng5 {[%clk 0:01:59.1]} 22. Qe3 {[%clk 0:02:22.2]} 22...
Bh6 {[%clk 0:01:56.5]} 23. Qe2 {[%clk 0:02:22]} 23... Ne6 {[%clk 0:01:52.1]} 24.
g3 {[%clk 0:02:17.5]} 24... Ng5 {[%clk 0:01:42.6]} 25. Bg2 {[%clk 0:02:17.4]}
25... Qe7 {[%clk 0:01:37.9]} 26. h4 {[%clk 0:02:15.7]} 26... Ne6 {[%clk
0:01:36.1]} 27. Bxe5 {[%clk 0:02:09.8]} 27... Nxc5 {[%clk 0:01:35.7]} 28. Ba1
{[%clk 0:01:51.6]} 28... Na4 {[%clk 0:01:30.2]} 29. Rxd8 {[%clk 0:01:45.6]}
29... Rxd8 {[%clk 0:01:29]} 30. Rd1 {[%clk 0:01:46.1]} 30... Bg7 {[%clk
0:01:27.8]} 31. Bxg7 {[%clk 0:01:43.1]} 31... Kxg7 {[%clk 0:01:28.7]} 32. Qc2
{[%clk 0:01:39.1]} 32... Rxd1+ {[%clk 0:01:17.3]} 33. Qxd1 {[%clk 0:01:38.1]}
33... Nc3 {[%clk 0:01:18.2]} 34. Qd4+ {[%clk 0:01:32]} 34... Qf6 {[%clk
0:01:17.5]} 35. Qxa7 {[%clk 0:01:32]} 35... Ne2+ {[%clk 0:01:15.9]} 36. Kh2
{[%clk 0:01:32]} 36... Qa1 {[%clk 0:01:14.8]} 37. Qe3 {[%clk 0:01:25.4]} 37...
Nd4 {[%clk 0:01:12.1]} 38. Qf4 {[%clk 0:01:13.8]} 38... Ne6 {[%clk 0:01:05.1]}
39. Qe3 {[%clk 0:01:07.6]} 39... Qb2 {[%clk 0:01:00.6]} 40. e5 {[%clk
0:01:04.1]} 40... Qc2 {[%clk 0:00:54.9]} 41. Bh3 {[%clk 0:01:00]} 41... Nc7
{[%clk 0:00:49.1]} 42. Qf4 {[%clk 0:00:55.1]} 42... Nd5 {[%clk 0:00:46]} 43. Qd4
{[%clk 0:00:51.6]} 43... Qc3 {[%clk 0:00:45.5]} 44. Qxc3 {[%clk 0:00:49.9]}
44... Nxc3 {[%clk 0:00:46.4]} 45. Bc8 {[%clk 0:00:40.9]} 45... b6 {[%clk
0:00:42.1]} 46. Bd7 {[%clk 0:00:29.7]} 46... c5 {[%clk 0:00:41.8]} 47. bxc5
{[%clk 0:00:29.9]} 47... bxc5 {[%clk 0:00:42.7]} 48. a4 {[%clk 0:00:30.6]} 48...
Nd5 {[%clk 0:00:33.5]} 49. a5 {[%clk 0:00:28.5]} 49... c4 {[%clk 0:00:33.9]} 50.
a6 {[%clk 0:00:20.2]} 50... c3 {[%clk 0:00:31.1]} 51. a7 {[%clk 0:00:17.8]}
51... Nb6 {[%clk 0:00:30.9]} 52. Ba4 {[%clk 0:00:18.3]} 52... f6 {[%clk
0:00:26]} 53. e6 {[%clk 0:00:14.1]} 53... Kf8 {[%clk 0:00:25.8]} 54. Bb3 {[%clk
0:00:14.3]} 54... Ke7 {[%clk 0:00:25.9]} 55. Kg2 {[%clk 0:00:14]} 55... f5
{[%clk 0:00:24.8]} 56. Kf3 {[%clk 0:00:13.7]} 56... Kd6 {[%clk 0:00:23.6]} 57.
Kf4 {[%clk 0:00:11.7]} 57... c2 {[%clk 0:00:21.2]} 58. Bxc2 {[%clk 0:00:11.1]}
58... Kxe6 {[%clk 0:00:22.1]} 59. Kg5 {[%clk 0:00:09.7]} 59... Kf7 {[%clk
0:00:22]} 60. Bb3+ {[%clk 0:00:09.5]} 60... Kg7 {[%clk 0:00:22.5]} 61. Bd5
{[%clk 0:00:08.9]} 61... Nxd5 {[%clk 0:00:20.5]} 62. a8=Q {[%clk 0:00:09]} 62...
Ne7 {[%clk 0:00:20]} 63. Qa7 {[%clk 0:00:08.6]} 63... Kf7 {[%clk 0:00:20.1]} 64.
Qd7 {[%clk 0:00:08]} 64... Kf8 {[%clk 0:00:19.9]} 65. Kf6 {[%clk 0:00:08.2]}
65... Ng8+ {[%clk 0:00:20.3]} 66. Kxg6 {[%clk 0:00:08.6]} 66... Ne7+ {[%clk
0:00:21]} 67. Kxh5 {[%clk 0:00:08.8]} 67... Nd5 {[%clk 0:00:21.9]} 68. Qxd5
{[%clk 0:00:08.5]} 68... f4 {[%clk 0:00:22.1]} 69. Qd7 {[%clk 0:00:08.1]} 69...
f3 {[%clk 0:00:23]} 70. Kg6 {[%clk 0:00:07.6]} 70... Kg8 {[%clk 0:00:22.2]} 71.
Qe8# {[%clk 0:00:08.5]} 1-0

[Event "Late-Titled-Tuesday-Blitz-January-16-2024"]
[Site "Chess.com"]
[Date "2024.01.16"]
[Round "2"]
[White "dasatcu90"]
[Black "sjoerd893"]
[Result "1-0"]
[WhiteElo "2298"]
[BlackElo "2504"]
[TimeControl "180+1"]
[EndTime "14:18:44 PST"]
[Termination "dasatcu90 won by checkmate"]

1. d4 {[%clk 0:03:00.9]} 1... d5 {[%clk 0:02:59.5]} 2. Nf3 {[%clk 0:03:01.1]}
2... Nf6 {[%clk 0:02:59.3]} 3. e3 {[%clk 0:03:01]} 3... e6 {[%clk 0:02:56.4]} 4.
Bd3 {[%clk 0:03:01.5]} 4... c5 {[%clk 0:02:56.6]} 5. c3 {[%clk 0:03:01.5]} 5...
Nc6 {[%clk 0:02:56.1]} 6. Nbd2 {[%clk 0:03:02]} 6... Bd7 {[%clk 0:02:56.4]} 7.
O-O {[%clk 0:03:02.1]} 7... Be7 {[%clk 0:02:56.3]} 8. Qe2 {[%clk 0:03:00.9]}
8... O-O {[%clk 0:02:55.6]} 9. dxc5 {[%clk 0:03:01.5]} 9... Bxc5 {[%clk
0:02:55.4]} 10. e4 {[%clk 0:03:02.4]} 10... Rc8 {[%clk 0:02:38.6]} 11. e5 {[%clk
0:02:55.2]} 11... Ne8 {[%clk 0:02:32.6]} 12. Nb3 {[%clk 0:02:51.2]} 12... Be7
{[%clk 0:02:29.9]} 13. h4 {[%clk 0:02:22.4]} 13... Bxh4 {[%clk 0:02:19.5]} 14.
Nxh4 {[%clk 0:02:22]} 14... Qxh4 {[%clk 0:02:18.8]} 15. g3 {[%clk 0:02:22.1]}
15... Qh3 {[%clk 0:02:05.7]} 16. Re1 {[%clk 0:01:31.2]} 16... f6 {[%clk
0:01:38.7]} 17. exf6 {[%clk 0:01:03.3]} 17... Nxf6 {[%clk 0:01:34]} 18. Qf1
{[%clk 0:00:49.5]} 18... e5 {[%clk 0:01:31.8]} 19. Qxh3 {[%clk 0:00:48.7]} 19...
Bxh3 {[%clk 0:01:32.7]} 20. Be3 {[%clk 0:00:35.8]} 20... b6 {[%clk 0:01:24]} 21.
Bg5 {[%clk 0:00:27.1]} 21... e4 {[%clk 0:01:18.1]} 22. Bb5 {[%clk 0:00:26.2]}
22... Ne5 {[%clk 0:01:16.1]} 23. Nd4 {[%clk 0:00:22.3]} 23... Nfg4 {[%clk
0:01:08.1]} 24. Bf4 {[%clk 0:00:20.6]} 24... g5 {[%clk 0:00:49.9]} 25. Bxe5
{[%clk 0:00:17.4]} 25... Rxf2 {[%clk 0:00:50]} 26. Bf1 {[%clk 0:00:18.2]} 26...
Bxf1 {[%clk 0:00:48]} 27. Rxf1 {[%clk 0:00:18.1]} 27... Rxf1+ {[%clk 0:00:45.6]}
28. Rxf1 {[%clk 0:00:17.5]} 28... Nxe5 {[%clk 0:00:46.1]} 29. Rf5 {[%clk
0:00:16.8]} 29... Nf7 {[%clk 0:00:42.7]} 30. Rxd5 {[%clk 0:00:16.8]} 30... Re8
{[%clk 0:00:41.2]} 31. Kf2 {[%clk 0:00:15.3]} 31... Ne5 {[%clk 0:00:39.7]} 32.
Ke2 {[%clk 0:00:14.2]} 32... h6 {[%clk 0:00:30.2]} 33. Nf5 {[%clk 0:00:14.2]}
33... Kh7 {[%clk 0:00:28.6]} 34. Rd6 {[%clk 0:00:12.1]} 34... Nf7 {[%clk
0:00:24.8]} 35. Rd7 {[%clk 0:00:11.6]} 35... Kg6 {[%clk 0:00:25.2]} 36. Ne3
{[%clk 0:00:06.4]} 36... a5 {[%clk 0:00:20.5]} 37. Rb7 {[%clk 0:00:06.3]} 37...
Re6 {[%clk 0:00:20.1]} 38. c4 {[%clk 0:00:05.9]} 38... Ne5 {[%clk 0:00:18.9]}
39. b3 {[%clk 0:00:05.7]} 39... Nd3 {[%clk 0:00:14.3]} 40. Nd5 {[%clk
0:00:05.5]} 40... Nc1+ {[%clk 0:00:14.1]} 41. Ke3 {[%clk 0:00:05.6]} 41... Nxa2
{[%clk 0:00:14.8]} 42. Nxb6 {[%clk 0:00:05.1]} 42... Nc1 {[%clk 0:00:13.7]} 43.
Nd5 {[%clk 0:00:05.4]} 43... h5 {[%clk 0:00:11.7]} 44. Rb5 {[%clk 0:00:04.3]}
44... Re8 {[%clk 0:00:07.6]} 45. Rxa5 {[%clk 0:00:04.3]} 45... Nxb3 {[%clk
0:00:07.6]} 46. Ra6+ {[%clk 0:00:03.9]} 46... Kg7 {[%clk 0:00:08.3]} 47. Ra7+
{[%clk 0:00:03.9]} 47... Kf8 {[%clk 0:00:04.2]} 48. Nf6 {[%clk 0:00:04.1]} 48...
Re6 {[%clk 0:00:02.9]} 49. Nxh5 {[%clk 0:00:04]} 49... Rh6 {[%clk 0:00:02.5]}
50. g4 {[%clk 0:00:03.7]} 50... Rd6 {[%clk 0:00:02.2]} 51. Kxe4 {[%clk
0:00:03.9]} 51... Nc5+ {[%clk 0:00:02.3]} 52. Ke5 {[%clk 0:00:03.9]} 52... Rd2
{[%clk 0:00:02]} 53. Kf5 {[%clk 0:00:03.4]} 53... Nd3 {[%clk 0:00:01.5]} 54.
Kxg5 {[%clk 0:00:03.6]} 54... Ne5 {[%clk 0:00:02.2]} 55. Nf6 {[%clk 0:00:03.6]}
55... Nxc4 {[%clk 0:00:02.2]} 56. Kg6 {[%clk 0:00:04]} 56... Rd8 {[%clk
0:00:01.6]} 57. Rf7# {[%clk 0:00:03.3]} 1-0

[Event "Late-Titled-Tuesday-Blitz-January-16-2024"]
[Site "Chess.com"]
[Date "2024.01.16"]
[Round "2"]
[White "mbojan"]
[Black "ValeriyGrinev"]
[Result "0-1"]
[WhiteElo "2852"]
[BlackElo "2570"]
[TimeControl "180+1"]
[EndTime "14:18:46 PST"]
[Termination "ValeriyGrinev won on time"]

1. a3 {[%clk 0:03:00.9]} 1... d5 {[%clk 0:02:59.6]} 2. e3 {[%clk 0:03:00.5]}
2... e5 {[%clk 0:02:59.2]} 3. d4 {[%clk 0:03:00.1]} 3... exd4 {[%clk 0:02:58.7]}
4. exd4 {[%clk 0:03:01]} 4... Nf6 {[%clk 0:02:58.2]} 5. Bd3 {[%clk 0:02:43.7]}
5... c5 {[%clk 0:02:57.5]} 6. Nf3 {[%clk 0:02:15.1]} 6... Nc6 {[%clk 0:02:49.4]}
7. O-O {[%clk 0:02:14.7]} 7... cxd4 {[%clk 0:02:44.4]} 8. Nbd2 {[%clk
0:02:13.3]} 8... Bd6 {[%clk 0:02:16.3]} 9. Re1+ {[%clk 0:02:12.9]} 9... Be6
{[%clk 0:02:16]} 10. Nb3 {[%clk 0:02:00.8]} 10... O-O {[%clk 0:02:14.2]} 11.
Nfxd4 {[%clk 0:01:59.7]} 11... Bg4 {[%clk 0:02:10.4]} 12. f3 {[%clk 0:01:54.8]}
12... Bh5 {[%clk 0:02:08.6]} 13. Be3 {[%clk 0:01:55]} 13... Re8 {[%clk
0:02:06.8]} 14. Qd2 {[%clk 0:01:55.2]} 14... Ne5 {[%clk 0:02:02.9]} 15. Bf2
{[%clk 0:01:54.6]} 15... Nc4 {[%clk 0:02:01.1]} 16. Bxc4 {[%clk 0:01:51]} 16...
dxc4 {[%clk 0:02:01.2]} 17. Rxe8+ {[%clk 0:01:51.5]} 17... Qxe8 {[%clk
0:01:45.8]} 18. Nc1 {[%clk 0:01:51.6]} 18... Rd8 {[%clk 0:01:44.7]} 19. Nce2
{[%clk 0:01:51]} 19... Bg6 {[%clk 0:01:40.6]} 20. Re1 {[%clk 0:01:45.8]} 20...
Qd7 {[%clk 0:01:40.3]} 21. h3 {[%clk 0:01:43.2]} 21... Bb8 {[%clk 0:01:39.1]}
22. c3 {[%clk 0:01:40.5]} 22... h6 {[%clk 0:01:37.5]} 23. Bg3 {[%clk 0:01:40.3]}
23... Bxg3 {[%clk 0:01:28.3]} 24. Nxg3 {[%clk 0:01:41.2]} 24... Bd3 {[%clk
0:01:28.1]} 25. Qf4 {[%clk 0:01:37.4]} 25... Nd5 {[%clk 0:01:27.3]} 26. Qe5
{[%clk 0:01:36]} 26... Nf6 {[%clk 0:01:22.9]} 27. Qe7 {[%clk 0:01:19.6]} 27...
Re8 {[%clk 0:01:19.7]} 28. Qxd7 {[%clk 0:01:19.4]} 28... Rxe1+ {[%clk
0:01:19.6]} 29. Kf2 {[%clk 0:01:20]} 29... Nxd7 {[%clk 0:01:17.2]} 30. Kxe1
{[%clk 0:01:19.8]} 30... Nc5 {[%clk 0:01:18.1]} 31. Kd2 {[%clk 0:01:15.8]} 31...
g6 {[%clk 0:01:17]} 32. Nh1 {[%clk 0:01:07.6]} 32... Bf1 {[%clk 0:01:15]} 33. g4
{[%clk 0:00:51.6]} 33... Nd3 {[%clk 0:01:06.6]} 34. Ng3 {[%clk 0:00:16.8]} 34...
Bxh3 {[%clk 0:01:06.2]} 35. b4 {[%clk 0:00:17.1]} 35... Bg2 {[%clk 0:00:57.1]}
36. Ke2 {[%clk 0:00:16.5]} 36... Kg7 {[%clk 0:00:54.5]} 37. Ne4 {[%clk
0:00:15.2]} 37... h5 {[%clk 0:00:53.9]} 38. gxh5 {[%clk 0:00:14]} 38... gxh5
{[%clk 0:00:54.8]} 39. Nd6 {[%clk 0:00:14.7]} 39... h4 {[%clk 0:00:46.1]} 40.
N6f5+ {[%clk 0:00:14.2]} 40... Kf6 {[%clk 0:00:45]} 41. Nxh4 {[%clk 0:00:15.1]}
41... Bh3 {[%clk 0:00:45.5]} 42. f4 {[%clk 0:00:06]} 42... Nxf4+ {[%clk
0:00:45.2]} 43. Ke3 {[%clk 0:00:06.2]} 43... Nd5+ {[%clk 0:00:46]} 44. Kd2
{[%clk 0:00:06.7]} 44... Bg4 {[%clk 0:00:43.2]} 45. Ng2 {[%clk 0:00:06.8]} 45...
Ke5 {[%clk 0:00:42.5]} 46. Ne3 {[%clk 0:00:06.8]} 46... Nxe3 {[%clk 0:00:42.4]}
47. Kxe3 {[%clk 0:00:07.7]} 47... f5 {[%clk 0:00:42]} 48. Nb5 {[%clk 0:00:08]}
48... f4+ {[%clk 0:00:42]} 49. Kd2 {[%clk 0:00:07.9]} 49... a6 {[%clk
0:00:42.1]} 50. Nd4 {[%clk 0:00:06.8]} 50... Ke4 {[%clk 0:00:41.5]} 51. a4
{[%clk 0:00:05.8]} 51... f3 {[%clk 0:00:41.5]} 52. Ke1 {[%clk 0:00:04]} 52...
Kd3 {[%clk 0:00:41.6]} 53. b5 {[%clk 0:00:03.8]} 53... Kxc3 {[%clk 0:00:41]} 54.
bxa6 {[%clk 0:00:03.9]} 54... bxa6 {[%clk 0:00:41.9]} 55. Nc6 {[%clk 0:00:04.3]}
55... Kb3 {[%clk 0:00:41.1]} 56. a5 {[%clk 0:00:04]} 56... c3 {[%clk 0:00:41]}
57. Ne5 {[%clk 0:00:03.8]} 57... c2 {[%clk 0:00:40.7]} 58. Kd2 {[%clk
0:00:04.3]} 58... f2 {[%clk 0:00:38.5]} 59. Nxg4 {[%clk 0:00:04.1]} 59... f1=Q
{[%clk 0:00:38.6]} 60. Ne3 {[%clk 0:00:03.9]} 60... Qf2+ {[%clk 0:00:38.9]} 61.
Kd3 {[%clk 0:00:03.8]} 61... Qxe3+ {[%clk 0:00:38.8]} 62. Kxe3 {[%clk
0:00:03.4]} 62... c1=Q+ {[%clk 0:00:39.3]} 63. Kd4 {[%clk 0:00:03.4]} 63... Qc4+
{[%clk 0:00:38.9]} 64. Ke5 {[%clk 0:00:03.5]} 64... Qd3 {[%clk 0:00:39.3]} 65.
Kf6 {[%clk 0:00:03.7]} 65... Qe4 {[%clk 0:00:39.1]} 66. Kg5 {[%clk 0:00:03.5]}
66... Qf3 {[%clk 0:00:39.2]} 67. Kg6 {[%clk 0:00:03.3]} 67... Qf4 {[%clk
0:00:39.4]} 68. Kg7 {[%clk 0:00:03.6]} 68... Qf5 {[%clk 0:00:39.5]} 69. Kg8
{[%clk 0:00:03.9]} 69... Qd7 {[%clk 0:00:39.6]} 70. Kf8 {[%clk 0:00:03.9]} 70...
Kc4 {[%clk 0:00:40.5]} 71. Kg8 {[%clk 0:00:03.7]} 71... Kd5 {[%clk 0:00:41.4]}
72. Kf8 {[%clk 0:00:03.5]} 72... Ke6 {[%clk 0:00:42.3]} 73. Kg8 {[%clk
0:00:03.6]} 73... Kf6 {[%clk 0:00:42.9]} 0-1